bitfinex/quotes_BTCUSD_20240712
["timestamp","ask_amount","ask_price","bid_price","bid_amount"]
[1720757457224,1.24256291,57043.0,57042.0,0.000913]
[1720757457512,1.24256291,57043.0,57042.0,0.081413]
[1720757457513,1.24256874,57043.0,57042.0,0.081413]
[1720757457731,1.24256874,57043.0,57042.0,0.147713]
[1720757458392,1.24244406,57043.0,57042.0,0.147713]
[1720757460154,0.99701606,57043.0,57042.0,0.147713]
[1720757460969,0.04364047,57043.0,57042.0,0.243713]
[1720757461230,0.1728323,57043.0,57042.0,0.243713]
[1720757461468,0.30368133,57043.0,57042.0,0.243713]
[1720757462148,0.30369684,57043.0,57042.0,0.243713]
[1720757462405,0.1728323,57043.0,57042.0,0.243713]
[1720757462638,0.30369403,57043.0,57042.0,0.243713]
[1720757462878,0.7460883,57043.0,57042.0,0.147713]
[1720757463172,0.9915163,57043.0,57042.0,0.147713]
[1720757463420,1.0075163,57043.0,57042.0,0.147713]
[1720757463690,1.1075163,57043.0,57042.0,0.147713]
[1720757463888,1.0915163,57043.0,57042.0,0.147713]
[1720757464104,1.07461262,57043.0,57042.0,0.147713]
[1720757464313,1.09106696,57043.0,57042.0,0.147713]
[1720757464523,1.07250182,57043.0,57042.0,0.147713]
[1720757464729,1.08898583,57043.0,57042.0,0.000913]
[1720757464949,1.10498583,57043.0,57042.0,0.000913]
[1720757465884,1.11299483,57043.0,57042.0,0.000913]
[1720757467531,1.09651082,57043.0,57042.0,0.000913]
[1720757467735,1.11235179,57043.0,57042.0,0.000913]
[1720757468164,1.09635179,57043.0,57042.0,0.000913]
[1720757469617,1.11235179,57043.0,57042.0,0.000913]
[1720757471002,1.11234564,57043.0,57042.0,0.000913]
[1720757474518,1.11227842,57043.0,57042.0,0.000913]
[1720757475468,1.28890071,57043.0,57042.0,0.000913]
[1720757475939,1.11227842,57043.0,57042.0,0.000913]
[1720757476156,1.28890071,57043.0,57042.0,0.000913]
[1720757476279,1.53432871,57043.0,57042.0,0.000913]
[1720757476488,1.35770642,57043.0,57042.0,0.000913]
[1720757476711,1.34193882,57043.0,57042.0,0.000913]
[1720757476917,1.35660322,57043.0,57042.0,0.000913]
[1720757477789,1.35643327,57043.0,57042.0,0.000913]
[1720757478951,1.53307013,57043.0,57042.0,0.000913]
[1720757479366,1.35643327,57043.0,57042.0,0.000913]
[1720757479564,1.533085,57043.0,57042.0,0.000913]
[1720757479910,1.35643327,57043.0,57042.0,0.000913]
[1720757480552,1.20261545,57043.0,57042.0,0.000913]
[1720757480751,1.34032287,57043.0,57042.0,0.000913]
[1720757481131,1.34034907,57043.0,57042.0,0.000913]
[1720757481699,1.51699431,57043.0,57042.0,0.000913]
[1720757482312,1.51782431,57043.0,57042.0,0.000913]
[1720757483184,1.34117907,57043.0,57042.0,0.000913]
[1720757484571,1.34122827,57043.0,57042.0,0.000913]
[1720757484983,1.32606091,57043.0,57042.0,0.000913]
[1720757485183,1.34122878,57043.0,57042.0,0.000913]
[1720757486954,1.34120128,57043.0,57042.0,0.000913]
[1720757488073,1.34074345,57043.0,57042.0,0.000913]
[1720757489300,0.016,57041.0,57040.0,0.0777]
[1720757489502,1.31184272,57041.0,57040.0,0.0777]
[1720757489673,1.42684312,57041.0,57040.0,0.0777]
[1720757490092,1.42681663,57041.0,57040.0,0.0777]
[1720757490319,1.25014894,57041.0,57040.0,0.0777]
[1720757490526,1.42681328,57041.0,57040.0,0.0777]
[1720757491155,1.25014894,57041.0,57040.0,0.0777]
[1720757491499,1.42681124,57041.0,57040.0,0.0777]
[1720757491714,0.98871194,57041.0,57040.0,0.0777]
[1720757492127,1.07111194,57041.0,57040.0,0.0777]
[1720757492333,1.07125538,57041.0,57040.0,0.0777]
[1720757492522,1.07525538,57041.0,57040.0,0.0777]
[1720757492957,1.07825538,57041.0,57040.0,0.0777]
[1720757493173,0.03682638,57041.0,57040.0,0.239]
[1720757493387,0.16770157,57041.0,57040.0,0.61066692]
[1720757493604,0.16770157,57041.0,57040.0,0.42172]
[1720757493605,0.0220004,57041.0,57040.0,0.42172]
[1720757493823,0.0220004,57041.0,57040.0,0.912602]
[1720757494263,0.007,57041.0,57040.0,0.912602]
[1720757494479,0.003,57041.0,57040.0,0.912602]
[1720757494695,0.003,57041.0,57040.0,0.667161]
[1720757495127,0.003,57041.0,57040.0,0.36172]
[1720757495605,0.01550102,57041.0,57040.0,0.239]
[1720757495831,0.36815,57042.0,57041.0,0.096]
[1720757496049,0.122717,57042.0,57041.0,0.237]
[1720757496258,0.008839,57043.0,57042.0,0.2372]
[1720757496479,0.008839,57043.0,57042.0,0.44503035]
[1720757496912,0.008839,57043.0,57042.0,0.32231435]
[1720757497344,0.008839,57043.0,57042.0,0.32523509]
[1720757497562,0.008839,57043.0,57042.0,0.33023509]
[1720757498079,0.008839,57043.0,57042.0,0.32523509]
[1720757499080,0.009839,57043.0,57042.0,0.33223509]
[1720757499448,0.010839,57043.0,57042.0,0.33923509]
[1720757500692,0.010839,57043.0,57042.0,0.34274084]
[1720757501316,0.02341435,57043.0,57042.0,0.3398201]
[1720757501517,0.010839,57043.0,57042.0,0.34274084]
[1720757501741,0.02341435,57043.0,57042.0,0.34274084]
[1720757501931,0.010839,57043.0,57042.0,0.34274084]
[1720757502079,0.02341435,57043.0,57042.0,0.34274084]
[1720757502280,0.010839,57043.0,57042.0,0.34274084]
[1720757502478,0.02341435,57043.0,57042.0,0.34274084]
[1720757502728,0.010839,57043.0,57042.0,0.34274084]
[1720757502900,0.02341435,57043.0,57042.0,0.33923509]
[1720757503142,0.010839,57043.0,57042.0,0.33631435]
[1720757503343,0.02341435,57043.0,57042.0,0.33631435]
[1720757503610,0.010839,57043.0,57042.0,0.33631435]
[1720757503763,0.02341435,57043.0,57042.0,0.33631435]
[1720757503963,0.010839,57043.0,57042.0,0.33631435]
[1720757504163,0.02341435,57043.0,57042.0,0.33631435]
[1720757504379,0.010839,57043.0,57042.0,0.33631435]
[1720757504554,0.02341435,57043.0,57042.0,0.33631435]
[1720757504753,0.010839,57043.0,57042.0,0.33631435]
[1720757505181,0.010839,57043.0,57042.0,0.2512]
[1720757505182,0.133553,57043.0,57042.0,0.2512]
[1720757505515,0.14612835,57043.0,57042.0,0.2512]
[1720757506749,0.02341435,57043.0,57042.0,0.2512]
[1720757508246,0.02341435,57043.0,57042.0,0.3112]
[1720757508451,0.02341435,57043.0,57042.0,0.679349]
[1720757508877,0.010839,57043.0,57042.0,0.679349]
[1720757509094,0.0824,57061.0,57042.0,0.679349]
[1720757509095,0.122677,57060.0,57059.0,0.1562]
[1720757509301,0.122677,57060.0,57059.0,0.2357]
[1720757509302,0.38550267,57060.0,57059.0,0.2357]
[1720757509506,0.38060735,57060.0,57059.0,0.2357]
[1720757509923,0.38060735,57060.0,57059.0,0.1397]
[1720757509924,0.70836235,57060.0,57059.0,0.1397]
[1720757510155,0.70836235,57060.0,57059.0,0.0795]
[1720757510361,0.70836235,57060.0,57055.0,0.0771]
[1720757510362,0.61341,57058.0,57055.0,0.0771]
[1720757510568,0.205086,57056.0,57055.0,0.0771]
[1720757511023,0.70840535,57056.0,57055.0,0.0771]
[1720757511434,0.245377,57055.0,57052.0,0.142]
[1720757511888,0.613462,57053.0,57052.0,0.142]
[1720757512096,0.613462,57053.0,57052.0,0.238]
[1720757512302,0.62607326,57053.0,57052.0,0.238]
[1720757513122,0.62607326,57053.0,57052.0,0.142]
[1720757514842,0.62607326,57053.0,57052.0,0.146]
[1720757515059,0.62690326,57053.0,57052.0,0.242]
[1720757515273,0.62690326,57053.0,57052.0,0.246]
[1720757517794,0.62690326,57053.0,57052.0,0.15]
[1720757518000,0.70930326,57053.0,57052.0,0.15]
[1720757518294,0.70930326,57053.0,57052.0,0.0842]
[1720757518295,0.9727749,57053.0,57052.0,0.0842]
[1720757518529,0.9727749,57053.0,57052.0,0.008]
[1720757518771,0.9887749,57053.0,57052.0,0.008]
[1720757519015,1.0887749,57053.0,57052.0,0.008]
[1720757519694,1.11171008,57053.0,57052.0,0.008]
[1720757520352,1.39309508,57053.0,57052.0,0.008]
[1720757521236,1.39286515,57053.0,57052.0,0.008]
[1720757521461,1.39286515,57053.0,57052.0,0.004]
[1720757521462,1.39226593,57053.0,57052.0,0.004]
[1720757521686,0.858984,57044.0,57043.0,0.1408]
[1720757521903,0.87684071,57044.0,57043.0,0.1408]
[1720757522106,0.88942393,57044.0,57043.0,0.2368]
[1720757522572,0.03043993,57044.0,57043.0,0.2368]
[1720757522787,0.03043993,57044.0,57043.0,0.2968]
[1720757522989,0.01258322,57044.0,57043.0,0.42301965]
[1720757523196,0.001,57044.0,57043.0,0.42301965]
[1720757523654,0.001,57044.0,57043.0,0.66844765]
[1720757523864,0.001,57044.0,57043.0,0.91387565]
[1720757525350,0.14645818,57053.0,57052.0,0.1912]
[1720757525579,0.2643983,57053.0,57052.0,0.1912]
[1720757525808,0.27694756,57053.0,57052.0,0.2432]
[1720757527026,0.28394656,57053.0,57052.0,0.2442]
[1720757527901,0.28890815,57053.0,57052.0,0.2452]
[1720757528313,0.24066858,57055.0,57053.0,0.1416]
[1720757528539,0.36335658,57055.0,57054.0,0.1735]
[1720757529717,0.37235658,57055.0,57054.0,0.1735]
[1720757530178,0.36335658,57055.0,57054.0,0.1735]
[1720757530411,0.009,57055.0,57054.0,0.2347]
[1720757530870,0.009,57055.0,57054.0,0.908152]
[1720757531106,0.016,57055.0,57054.0,0.908152]
[1720757531571,0.009,57055.0,57054.0,0.908152]
[1720757531804,0.028071,57055.0,57054.0,0.908152]
[1720757532038,0.029071,57055.0,57054.0,0.611771]
[1720757532273,0.029071,57055.0,57054.0,0.36639]
[1720757532486,0.028071,57055.0,57054.0,0.2347]
[1720757532695,0.028071,57055.0,57054.0,0.36281582]
[1720757532696,0.019071,57055.0,57054.0,0.36281582]
[1720757532906,0.020071,57055.0,57054.0,0.62819682]
[1720757533111,0.020071,57055.0,57054.0,0.62527608]
[1720757533314,0.020071,57055.0,57054.0,0.61527608]
[1720757533768,0.020071,57055.0,57054.0,0.62727608]
[1720757533974,0.020071,57055.0,57054.0,0.38189508]
[1720757534452,0.019071,57055.0,57054.0,0.37189508]
[1720757534685,0.02962084,57055.0,57054.0,0.61727608]
[1720757534939,0.03062084,57055.0,57054.0,0.62927608]
[1720757535166,0.020071,57055.0,57054.0,0.62927608]
[1720757535610,0.020071,57055.0,57054.0,0.38389508]
[1720757535931,0.03062084,57055.0,57054.0,0.38389508]
[1720757536602,0.03062084,57055.0,57054.0,0.26120508]
[1720757536845,0.03062084,57055.0,57054.0,0.2577]
[1720757539943,0.15330884,57055.0,57054.0,0.1617]
[1720757540198,0.15330884,57055.0,57054.0,0.1015]
[1720757540199,0.41518232,57055.0,57054.0,0.1015]
[1720757540419,0.66055932,57055.0,57054.0,0.1015]
[1720757541386,0.64406284,57055.0,57054.0,0.1015]
[1720757541627,0.66406992,57055.0,57054.0,0.1015]
[1720757542109,0.66406992,57055.0,57054.0,0.28261435]
[1720757542333,0.41869292,57055.0,57054.0,0.28261435]
[1720757542557,0.41869292,57055.0,57054.0,0.34401435]
[1720757543013,0.05062792,57055.0,57054.0,0.34401435]
[1720757543242,0.03062084,57055.0,57054.0,0.34401435]
[1720757543699,0.03062084,57055.0,57054.0,1.01746635]
[1720757544170,0.020071,57055.0,57054.0,1.01746635]
[1720757546144,0.020071,57055.0,57054.0,1.01363399]
[1720757547456,0.020071,57055.0,57054.0,1.01454699]
[1720757547672,0.020901,57055.0,57054.0,1.01454699]
[1720757548346,0.020901,57055.0,57054.0,1.25992799]
[1720757548573,0.020901,57055.0,57054.0,1.45992799]
[1720757548797,0.02173207,57069.0,57068.0,0.156]
[1720757549105,0.367946,57074.0,57072.0,0.1583]
[1720757549106,0.122649,57073.0,57072.0,0.1583]
[1720757549315,0.14350154,57073.0,57072.0,0.2389]
[1720757549920,0.38880054,57073.0,57072.0,0.2389]
[1720757550260,0.38880054,57073.0,57067.0,0.122661]
[1720757550261,0.122654,57071.0,57069.0,0.2389]
[1720757550449,0.122654,57071.0,57070.0,0.096]
[1720757550645,0.14365222,57071.0,57070.0,0.096]
[1720757551352,0.14365222,57071.0,57069.0,0.1429]
[1720757551353,0.122656,57070.0,57069.0,0.1429]
[1720757551720,0.122656,57070.0,57067.0,0.096]
[1720757552202,0.122656,57070.0,57068.0,0.096]
[1720757552705,0.122656,57070.0,57066.0,0.096]
[1720757552706,0.367987,57067.0,57066.0,0.096]
[1720757552926,0.63423519,57067.0,57066.0,0.096]
[1720757553373,0.367993,57066.0,57065.0,0.096]
[1720757553593,0.38891619,57066.0,57065.0,0.096]
[1720757553819,0.14358719,57066.0,57065.0,0.096]
[1720757554084,0.14358719,57066.0,57065.0,0.2377]
[1720757554085,0.02092319,57066.0,57065.0,0.2377]
[1720757554307,0.122661,57068.0,57067.0,0.096]
[1720757554530,0.122659,57069.0,57068.0,0.096]
[1720757554760,0.14421846,57069.0,57068.0,0.096]
[1720757554993,0.122659,57069.0,57068.0,0.096]
[1720757555468,0.122659,57069.0,57068.0,0.2382]
[1720757556401,0.122656,57070.0,57069.0,0.096]
[1720757556657,0.222656,57070.0,57069.0,0.096]
[1720757556887,0.26695026,57074.0,57069.0,0.2429]
[1720757556888,0.245302,57073.0,57069.0,0.2429]
[1720757557116,0.245302,57073.0,57072.0,0.096]
[1720757557117,0.122649,57073.0,57072.0,0.096]
[1720757557344,0.1,57073.0,57072.0,0.2429]
[1720757557557,0.12178247,57073.0,57072.0,0.2429]
[1720757558450,0.02165226,57074.0,57073.0,0.096]
[1720757558678,0.26628907,57074.0,57073.0,0.091]
[1720757558908,0.24463681,57074.0,57073.0,0.091]
[1720757559412,0.367948,57073.0,57072.0,0.008]
[1720757559635,0.122654,57071.0,57070.0,0.091]
[1720757559873,0.14464381,57071.0,57070.0,0.091]
[1720757560555,0.122656,57070.0,57069.0,0.1553]
[1720757560792,0.367968,57070.0,57069.0,0.1553]
[1720757561474,0.37859751,57070.0,57069.0,0.1553]
[1720757561930,0.37859751,57070.0,57069.0,0.1673]
[1720757562382,0.13328551,57070.0,57069.0,0.1673]
[1720757563053,0.01062951,57070.0,57069.0,0.1673]
[1720757563276,0.01062951,57070.0,57069.0,0.33081435]
[1720757563540,0.1,57074.0,57073.0,0.091]
[1720757563753,0.1305906,57079.0,57070.0,0.182655]
[1720757563754,0.4984746,57083.0,57082.0,0.091]
[1720757563969,0.38958111,57083.0,57082.0,0.235]
[1720757564514,0.02169711,57083.0,57082.0,0.235]
[1720757564966,0.12169711,57083.0,57082.0,0.235]
[1720757565170,0.12169711,57083.0,57082.0,0.237]
[1720757565794,0.1,57083.0,57082.0,0.237]
[1720757567227,0.222628,57083.0,57082.0,0.237]
[1720757567401,0.222628,57083.0,57082.0,0.238]
[1720757567817,0.71314,57083.0,57082.0,0.003]
[1720757568057,0.73480783,57083.0,57082.0,0.003]
[1720757568686,0.71314,57083.0,57082.0,0.003]
[1720757568892,0.7343721,57083.0,57082.0,0.003]
[1720757570161,0.73430312,57083.0,57082.0,0.003]
[1720757572227,0.73463131,57083.0,57082.0,0.003]
[1720757575168,0.73463131,57083.0,57082.0,0.1739]
[1720757575695,0.73480658,57083.0,57082.0,0.1739]
[1720757576115,0.73480641,57083.0,57082.0,0.1739]
[1720757576322,0.73480641,57083.0,57082.0,0.2366]
[1720757576323,0.74548395,57083.0,57082.0,0.2366]
[1720757577842,0.50022795,57083.0,57082.0,0.2366]
[1720757578277,0.50006951,57083.0,57082.0,0.2366]
[1720757579136,0.37856154,57083.0,57082.0,0.2366]
[1720757579392,0.40003212,57083.0,57082.0,0.2366]
[1720757580040,0.15477612,57083.0,57082.0,0.2366]
[1720757580247,0.03214812,57083.0,57082.0,0.2366]
[1720757580456,0.01067754,57083.0,57082.0,0.2366]
[1720757580880,0.122626,57084.0,57083.0,0.091]
[1720757581087,0.222626,57084.0,57083.0,0.09392074]
[1720757581291,0.1,57084.0,57083.0,0.09392074]
[1720757581712,0.222626,57084.0,57083.0,0.09392074]
[1720757581929,0.24403734,57084.0,57083.0,0.09392074]
[1720757582570,0.24406945,57084.0,57083.0,0.09392074]
[1720757582980,0.222626,57084.0,57083.0,0.09392074]
[1720757583185,0.24406955,57084.0,57083.0,0.09392074]
[1720757583386,0.24406955,57084.0,57083.0,0.2338]
[1720757583766,0.12144355,57084.0,57083.0,0.2338]
[1720757584305,0.025,57089.0,57088.0,0.091]
[1720757584550,0.025,57089.0,57088.0,0.23]
[1720757584551,0.04653173,57089.0,57088.0,0.23]
[1720757584757,0.025,57089.0,57088.0,0.23]
[1720757586084,0.025,57089.0,57088.0,0.74846949]
[1720757586312,0.025,57089.0,57088.0,0.99020135]
[1720757586552,0.025,57089.0,57088.0,0.98820135]
[1720757587005,0.025,57089.0,57088.0,0.99520135]
[1720757587251,0.025,57089.0,57088.0,0.99720135]
[1720757587719,0.025,57089.0,57088.0,1.24243635]
[1720757587964,0.025,57089.0,57088.0,1.25043635]
[1720757588202,0.025,57089.0,57088.0,1.24043635]
[1720757588680,0.025,57089.0,57088.0,1.25443635]
[1720757588907,0.025,57089.0,57088.0,1.00220135]
[1720757589360,0.025,57089.0,57088.0,1.01620135]
[1720757590267,0.025,57089.0,57088.0,1.26143635]
[1720757591626,0.025,57089.0,57088.0,1.01620135]
[1720757592293,0.025,57089.0,57088.0,0.625852]
[1720757592526,0.025,57089.0,57088.0,0.931087]
[1720757594557,0.025,57089.0,57088.0,0.258]
[1720757594832,0.15834906,57089.0,57088.0,0.258]
[1720757595036,0.03573406,57089.0,57088.0,0.258]
[1720757595748,0.15834906,57089.0,57088.0,0.258]
[1720757596866,0.40358006,57089.0,57088.0,0.258]
[1720757597085,0.15834906,57089.0,57088.0,0.258]
[1720757597773,0.03573406,57089.0,57088.0,0.258]
[1720757599111,0.15834906,57089.0,57088.0,0.258]
[1720757603233,0.03573406,57089.0,57088.0,0.258]
[1720757606204,0.15834906,57089.0,57088.0,0.258]
[1720757606727,0.15834906,57089.0,57088.0,0.028]
[1720757606728,0.6692549,57089.0,57088.0,0.028]
[1720757606923,0.9144859,57089.0,57088.0,0.028]
[1720757607281,1.0144859,57089.0,57088.0,0.028]
[1720757607681,1.1452116,57089.0,57088.0,0.014]
[1720757607881,0.5321346,57089.0,57081.0,0.091]
[1720757608106,0.367891,57082.0,57081.0,0.091]
[1720757608393,0.39910208,57082.0,57081.0,0.091]
[1720757608741,0.37865824,57082.0,57081.0,0.091]
[1720757608930,0.39905833,57082.0,57081.0,0.091]
[1720757609562,0.39905833,57082.0,57081.0,0.102]
[1720757610587,0.39905833,57082.0,57081.0,0.112]
[1720757610842,0.64431933,57082.0,57081.0,0.021]
[1720757611044,0.88958033,57082.0,57081.0,0.021]
[1720757612004,1.04058033,57082.0,57081.0,0.021]
[1720757612216,1.29124124,57082.0,57081.0,0.021]
[1720757612600,1.29124124,57082.0,57081.0,0.00408681]
[1720757612601,1.71411255,57082.0,57081.0,0.00408681]
[1720757612809,1.55717142,57082.0,57081.0,0.00408681]
[1720757613605,1.55717142,57082.0,57081.0,0.000913]
[1720757613606,1.75717142,57082.0,57081.0,0.000913]
[1720757613797,1.43454142,57082.0,57081.0,0.000913]
[1720757614007,1.31191042,57082.0,57081.0,0.001913]
[1720757614217,1.46877433,57082.0,57081.0,0.001913]
[1720757614391,1.31191042,57082.0,57081.0,0.001913]
[1720757614593,1.31191042,57082.0,57081.0,0.000913]
[1720757614796,1.31191042,57082.0,57081.0,0.001913]
[1720757614797,1.25411042,57082.0,57081.0,0.001913]
[1720757615399,1.25111042,57082.0,57081.0,0.000913]
[1720757615641,1.28221651,57082.0,57081.0,0.001913]
[1720757616049,1.03803451,57082.0,57081.0,0.000913]
[1720757616255,0.79277351,57082.0,57081.0,0.063213]
[1720757616449,0.78168839,57082.0,57081.0,0.31912735]
[1720757616803,0.77168839,57082.0,57081.0,0.31812735]
[1720757617036,0.78968839,57082.0,57081.0,0.144013]
[1720757617422,0.80126541,57082.0,57081.0,0.143013]
[1720757617632,1.03852641,57082.0,57081.0,0.000913]
[1720757618020,1.05452641,57082.0,57081.0,0.001913]
[1720757618224,1.03852641,57082.0,57081.0,0.001913]
[1720757618621,1.05452641,57082.0,57081.0,0.001913]
[1720757618848,1.03294939,57082.0,57081.0,0.001913]
[1720757619042,1.05462054,57082.0,57081.0,0.001913]
[1720757619599,1.03862054,57082.0,57081.0,0.001913]
[1720757620671,1.03862054,57082.0,57081.0,0.143013]
[1720757621527,1.03862054,57082.0,57081.0,0.001913]
[1720757622343,1.01694939,57082.0,57081.0,0.001913]
[1720757622549,1.03885377,57082.0,57081.0,0.001913]
[1720757624193,0.79171084,57082.0,57081.0,0.001913]
[1720757624591,1.03697184,57082.0,57081.0,0.001913]
[1720757625594,1.0369435,57082.0,57081.0,0.001913]
[1720757626224,1.01506746,57082.0,57081.0,0.001913]
[1720757626424,1.05293582,57082.0,57081.0,0.001913]
[1720757627886,1.35899682,57082.0,57081.0,0.001913]
[1720757629110,1.29819682,57082.0,57081.0,0.001913]
[1720757629311,1.29848464,57082.0,57081.0,0.001913]
[1720757629570,1.29848464,57082.0,57081.0,0.000913]
[1720757630763,1.30448464,57082.0,57081.0,0.001913]
[1720757631189,1.30948464,57082.0,57081.0,0.001913]
[1720757631347,0.874532,57074.0,57071.0,0.0788]
[1720757631547,0.99668818,57074.0,57068.0,0.14741435]
[1720757631813,1.25085838,57074.0,57068.0,0.14741435]
[1720757632741,1.25037636,57074.0,57068.0,0.14741435]
[1720757633296,1.25037636,57074.0,57067.0,0.0788]
[1720757633522,1.38088761,57074.0,57065.0,0.0607]
[1720757633697,0.858651,57066.0,57065.0,0.0607]
[1720757633902,0.98032516,57066.0,57065.0,0.0607]
[1720757634311,0.98920036,57066.0,57065.0,0.0607]
[1720757635431,0.97304051,57066.0,57065.0,0.0607]
[1720757635654,0.97604051,57066.0,57065.0,0.0607]
[1720757636092,0.95436635,57066.0,57065.0,0.1517]
[1720757636308,0.97665945,57066.0,57065.0,0.1517]
[1720757636485,0.95436635,57066.0,57065.0,0.1517]
[1720757636685,0.95436635,57066.0,57065.0,0.0607]
[1720757636686,0.97665777,57066.0,57065.0,0.0607]
[1720757637211,0.97265777,57066.0,57065.0,0.0607]
[1720757637531,0.97265777,57066.0,57065.0,0.0617]
[1720757638592,0.96965777,57066.0,57065.0,0.0617]
[1720757638873,0.96965777,57066.0,57065.0,0.0607]
[1720757639111,0.96965777,57066.0,57065.0,0.002]
[1720757639334,1.23098677,57066.0,57065.0,0.002]
[1720757639584,0.613367,57062.0,57061.0,0.0799]
[1720757639828,0.98118061,57062.0,57061.0,0.0799]
[1720757640025,0.98998581,57062.0,57061.0,0.0799]
[1720757641206,0.99298581,57062.0,57061.0,0.0799]
[1720757641409,0.858728,57061.0,57060.0,0.08511435]
[1720757641634,0.858728,57061.0,57060.0,0.17611435]
[1720757641635,0.98119461,57061.0,57060.0,0.17611435]
[1720757641832,0.98999907,57061.0,57060.0,0.17611435]
[1720757642040,0.99117327,57061.0,57060.0,0.17611435]
[1720757643428,0.96853246,57061.0,57060.0,0.17611435]
[1720757643605,0.72318146,57061.0,57060.0,0.17611435]
[1720757643782,0.10980446,57061.0,57060.0,0.32081435]
[1720757644187,0.23347946,57061.0,57060.0,0.32081435]
[1720757644403,0.72418146,57061.0,57060.0,0.32081435]
[1720757644559,0.72418146,57061.0,57060.0,0.22981435]
[1720757644756,0.72418146,57061.0,57060.0,0.32081435]
[1720757645004,0.72218146,57061.0,57060.0,0.32081435]
[1720757645477,0.72318146,57061.0,57060.0,0.33181435]
[1720757645649,0.72318146,57061.0,57060.0,0.32581435]
[1720757645871,0.72218146,57061.0,57060.0,0.32081435]
[1720757646076,0.72218146,57061.0,57060.0,0.22981435]
[1720757646268,0.72218146,57061.0,57060.0,0.23481435]
[1720757646850,0.72218146,57061.0,57060.0,0.22981435]
[1720757647054,0.72218146,57061.0,57060.0,0.1447]
[1720757647440,0.96753246,57061.0,57060.0,0.1447]
[1720757647646,0.96753246,57061.0,57060.0,0.145613]
[1720757648086,0.96853246,57061.0,57060.0,0.241613]
[1720757648312,0.96753246,57061.0,57060.0,0.236613]
[1720757648676,0.96753246,57061.0,57060.0,0.237613]
[1720757649086,0.96753246,57061.0,57060.0,0.146613]
[1720757649289,0.99117606,57061.0,57060.0,0.146613]
[1720757649700,0.99117606,57061.0,57060.0,0.151613]
[1720757650347,0.99117606,57061.0,57060.0,0.146613]
[1720757650572,0.99117606,57061.0,57060.0,0.147613]
[1720757650769,0.74582506,57061.0,57060.0,0.238613]
[1720757651392,0.74609768,57061.0,57060.0,0.238613]
[1720757652298,0.72218146,57061.0,57060.0,0.238613]
[1720757652507,0.746189,57061.0,57060.0,0.238613]
[1720757654577,0.746189,57061.0,57060.0,0.147613]
[1720757655704,0.74591569,57061.0,57060.0,0.147613]
[1720757656188,0.72218146,57061.0,57060.0,0.147613]
[1720757656365,0.74591563,57061.0,57060.0,0.238613]
[1720757659260,0.74571333,57061.0,57060.0,0.238613]
[1720757659461,0.13233633,57061.0,57060.0,0.238613]
[1720757659663,0.03573687,57061.0,57060.0,0.238613]
[1720757662663,0.012205,57061.0,57060.0,0.238613]
[1720757662893,0.03567166,57061.0,57060.0,0.238613]
[1720757663460,0.03567166,57061.0,57060.0,0.42129]
[1720757663677,0.03567166,57061.0,57060.0,0.298613]
[1720757663879,0.03567166,57061.0,57060.0,0.38664809]
[1720757664489,0.03567166,57061.0,57060.0,0.75468009]
[1720757664693,0.03567166,57061.0,57060.0,0.75175935]
[1720757664898,0.03567166,57061.0,57060.0,0.50932509]
[1720757665284,0.03567166,57061.0,57060.0,0.75468009]
[1720757665531,0.03567166,57061.0,57060.0,0.75175935]
[1720757666160,0.012205,57061.0,57060.0,0.75175935]
[1720757666585,0.012205,57061.0,57060.0,0.69175935]
[1720757666586,0.03622789,57061.0,57060.0,0.69175935]
[1720757666842,0.03622789,57061.0,57060.0,0.75175935]
[1720757667494,0.012205,57061.0,57060.0,1.24246935]
[1720757668796,0.012205,57061.0,57060.0,0.93711435]
[1720757669242,0.012205,57061.0,57060.0,0.99611435]
[1720757669514,0.222656,57070.0,57069.0,0.091]
[1720757669747,0.24611128,57070.0,57069.0,0.091]
[1720757670423,0.24611128,57070.0,57068.0,0.00292074]
[1720757670638,0.63674728,57069.0,57068.0,0.00292074]
[1720757670879,0.12266,57068.0,57067.0,0.091]
[1720757671089,0.39143628,57068.0,57067.0,0.091]
[1720757672583,0.52228333,57068.0,57067.0,0.091]
[1720757672792,0.367981,57068.0,57067.0,0.091]
[1720757672990,0.15443744,57068.0,57067.0,0.17611435]
[1720757673184,0.15443865,57068.0,57067.0,0.17611435]
[1720757673425,0.27709865,57068.0,57067.0,0.17611435]
[1720757673630,0.27709865,57068.0,57067.0,0.17711435]
[1720757673842,0.15443865,57068.0,57067.0,0.17711435]
[1720757674071,0.02352388,57068.0,57067.0,0.17711435]
[1720757674278,0.02352388,57068.0,57067.0,0.18003509]
[1720757674485,0.15443865,57068.0,57067.0,0.18003509]
[1720757674890,0.02352388,57068.0,57067.0,0.18003509]
[1720757675096,0.15443865,57068.0,57067.0,0.18103509]
[1720757675502,0.02352388,57068.0,57067.0,0.18103509]
[1720757676561,0.122659,57069.0,57067.0,0.18103509]
[1720757676723,0.02390732,57068.0,57067.0,0.18103509]
[1720757676954,0.122659,57069.0,57068.0,0.091]
[1720757677132,0.146448,57069.0,57068.0,0.09392074]
[1720757677798,0.391765,57069.0,57068.0,0.091]
[1720757678320,0.391765,57069.0,57067.0,0.08511435]
[1720757678321,0.367981,57068.0,57067.0,0.17611435]
[1720757678521,0.52273087,57068.0,57067.0,0.17611435]
[1720757678934,0.76805187,57068.0,57067.0,0.091]
[1720757679165,0.613322,57066.0,57065.0,0.091]
[1720757679406,0.391782,57066.0,57065.0,0.091]
[1720757679886,0.367993,57066.0,57065.0,0.091]
[1720757680106,0.39137583,57066.0,57065.0,0.091]
[1720757681022,0.39137583,57066.0,57065.0,0.095]
[1720757681240,0.39137583,57066.0,57065.0,0.099]
[1720757683472,0.39142386,57066.0,57065.0,0.099]
[1720757685818,0.63675286,57066.0,57065.0,0.099]
[1720757686349,0.39142386,57066.0,57065.0,0.099]
[1720757686994,0.39103028,57066.0,57065.0,0.099]
[1720757687458,0.39112072,57066.0,57065.0,0.099]
[1720757688829,0.02312772,57066.0,57065.0,0.099]
[1720757689029,0.14579172,57066.0,57065.0,0.099]
[1720757689262,0.122664,57066.0,57065.0,0.099]